lending/lending_fUSD_20240411
["ID","MTS","AMOUNT","RATE_DAILY","PERIOD"]
[322155088,1712855448323,-686.82,0.0003041,2]
[322155089,1712855448333,-2297.61,0.0003041,2]
[322155090,1712855448344,-500.0,0.0003041,2]
[322155091,1712855448354,-500.0,0.0003041,2]
[322155092,1712855448363,-1196.42,0.0003041,2]
[322155093,1712855448609,-830.95,0.0003041,2]
[322155094,1712855448620,-580.65,0.0003041,2]
[322155095,1712855448630,-500.0,0.0003041,2]
[322155096,1712855448640,-852.41,0.0003041,2]
[322155097,1712855448650,-500.0,0.0003041,2]
[322155098,1712855448662,-500.0,0.0003041,2]
[322155099,1712855448672,-1831.84,0.0003041,2]
[322155100,1712855448681,-500.0,0.0003041,2]
[322155101,1712855448690,-500.0,0.0003041,2]
[322155102,1712855448699,-500.0,0.0003041,2]
[322155103,1712855448708,-500.0,0.0003041,2]
[322155104,1712855448718,-797.48,0.0003041,2]
[322155105,1712855448727,-500.0,0.0003041,2]
[322155106,1712855448736,-1208.91,0.0003041,2]
[322155107,1712855448745,-500.0,0.0003041,2]
[322155108,1712855448754,-500.0,0.0003041,2]
[322155109,1712855448764,-500.0,0.0003041,2]
[322155110,1712855448773,-1795.62,0.0003041,2]
[322155111,1712855448782,-496.74435236,0.0003041,2]
[322155112,1712855448791,-500.0,0.0003041,2]
[322155113,1712855448800,-500.0,0.0003041,2]
[322155114,1712855448809,-500.0,0.0003041,2]
[322155115,1712855448818,-500.0,0.0003041,2]
[322155116,1712855448828,-500.0,0.0003041,2]
[322155117,1712855448837,-1070.75,0.0003041,2]
[322155118,1712855448846,-500.0,0.0003041,2]
[322155119,1712855448855,-500.0,0.0003041,2]
[322155120,1712855448864,-588.11,0.0003041,2]
[322155121,1712855448874,-500.0,0.0003041,2]
[322155122,1712855448884,-500.0,0.0003041,2]
[322155123,1712855448893,-500.0,0.0003041,2]
[322155124,1712855448903,-599.24,0.0003041,2]
[322155125,1712855448916,-500.0,0.0003041,2]
[322155126,1712855448925,-500.0,0.0003041,2]
[322155127,1712855448934,-2089.35,0.0003041,2]
[322155128,1712855448943,-500.0,0.0003041,2]
[322155129,1712855448954,-407.93603705,0.0003041,2]
[322155130,1712855448963,-500.0,0.0003041,2]
[322155131,1712855448973,-500.0,0.0003041,2]
[322155132,1712855448984,-533.41475925,0.0003041,2]
[322155133,1712855448994,-500.0,0.0003041,2]
[322155134,1712855449005,-500.0,0.0003041,2]
[322155135,1712855449014,-1887.1,0.0003041,2]
[322155136,1712855449023,-500.0,0.0003041,2]
[322155137,1712855449033,-500.0,0.0003041,2]
[322155138,1712855449043,-2056.65,0.0003041,2]
[322155139,1712855449055,-500.0,0.0003041,2]
[322155140,1712855449066,-500.0,0.0003041,2]
[322155141,1712855449077,-2418.48,0.0003041,2]
[322155142,1712855449088,-500.0,0.0003041,2]
[322155143,1712855449100,-769.28,0.0003041,2]
[322155144,1712855449110,-2658.44,0.0003041,2]
[322155145,1712855449121,-500.0,0.0003041,2]
[322155146,1712855449131,-500.0,0.0003041,2]
[322155147,1712855449141,-500.0,0.0003041,2]
[322155148,1712855449150,-945.67,0.0003041,2]
[322155149,1712855449160,-545.24,0.0003041,2]
[322155150,1712855449172,-500.0,0.0003041,2]
[322155151,1712855449182,-982.97,0.0003041,2]
[322155152,1712855449192,-1481.48,0.0003041,2]
[322155153,1712855449202,-932.1,0.0003041,2]
[322155154,1712855449211,-500.0,0.0003041,2]
[322155155,1712855449222,-1159.46,0.0003041,2]
[322155156,1712855449236,-500.0,0.0003041,2]
[322155157,1712855449246,-500.0,0.0003041,2]
[322155158,1712855449256,-500.0,0.0003041,2]
[322155159,1712855449269,-2261.96,0.0003041,2]
[322155160,1712855449280,-1369.72,0.0003041,2]
[322155161,1712855449290,-500.0,0.0003041,2]
[322155162,1712855449301,-500.0,0.0003041,2]
[322155163,1712855449313,-599.20107632,0.0003041,2]
[322155164,1712855449324,-1150.91,0.0003041,2]
[322155165,1712855449336,-500.0,0.0003041,2]
[322155166,1712855449348,-500.0,0.0003041,2]
[322155167,1712855449358,-500.0,0.0003041,2]
[322155168,1712855449370,-516.47,0.0003041,2]
[322155169,1712855449381,-500.0,0.0003041,2]
[322155170,1712855449391,-500.0,0.0003041,2]
[322155171,1712855449402,-530.57,0.0003041,2]
[322155172,1712855449412,-500.0,0.0003041,2]
[322155173,1712855449421,-500.0,0.0003041,2]
[322155174,1712855449431,-500.0,0.0003041,2]
[322155175,1712855449441,-500.0,0.0003041,2]
[322155176,1712855449452,-500.0,0.0003041,2]
[322155177,1712855449463,-500.0,0.0003041,2]
[322155178,1712855449473,-1686.53,0.0003041,2]
[322155179,1712855449484,-500.0,0.0003041,2]
[322155180,1712855449495,-500.0,0.0003041,2]
[322155181,1712855449507,-500.0,0.0003041,2]
[322155182,1712855449516,-500.0,0.0003041,2]
[322155183,1712855449526,-742.21,0.0003041,2]
[322155184,1712855449536,-500.0,0.0003041,2]
[322155185,1712855449546,-500.0,0.0003041,2]
[322155186,1712855449556,-500.0,0.0003041,2]
[322155187,1712855449565,-1615.99,0.0003041,2]
[322155188,1712855449575,-500.0,0.0003041,2]
[322155189,1712855449586,-1181.95,0.0003041,2]
[322155190,1712855449596,-500.0,0.0003041,2]
[322155191,1712855449607,-500.0,0.0003041,2]
[322155192,1712855449616,-566.61,0.0003041,2]
[322155193,1712855449628,-558.74,0.0003041,2]
[322155194,1712855449640,-267.00195889,0.0003041,2]
[322155195,1712855449650,-500.0,0.0003041,2]
[322155196,1712855449659,-1374.21,0.0003041,2]
[322155197,1712855449671,-964.61,0.0003041,2]
[322155198,1712855449682,-933.3,0.0003041,2]
[322155199,1712855449692,-500.0,0.0003041,2]
[322155200,1712855449702,-541.15395965,0.0003041,2]
[322155201,1712855449713,-500.0,0.0003041,2]
[322155202,1712855449724,-500.0,0.0003041,2]
[322155203,1712855449736,-500.0,0.0003041,2]
[322155204,1712855449747,-1754.68,0.0003041,2]
[322155205,1712855449759,-500.0,0.0003041,2]
[322155206,1712855449775,-500.0,0.0003041,2]
[322155207,1712855449786,-836.68,0.0003041,2]
[322155208,1712855449796,-500.0,0.0003041,2]
[322155209,1712855449806,-1517.98,0.0003041,2]
[322155210,1712855449816,-500.0,0.0003041,2]
[322155211,1712855449827,-1134.71,0.0003041,2]
[322155212,1712855449836,-500.0,0.0003041,2]
[322155213,1712855449846,-500.0,0.0003041,2]
[322155214,1712855449856,-500.0,0.0003041,2]
[322155215,1712855449866,-555.62,0.0003041,2]
[322155216,1712855449876,-500.0,0.0003041,2]
[322155217,1712855449885,-3795.28,0.0003041,2]
[322155218,1712855449895,-500.0,0.0003041,2]
[322155219,1712855449905,-1491.65,0.0003041,2]
[322155220,1712855449916,-500.0,0.0003041,2]
[322155221,1712855449926,-500.0,0.0003041,2]
[322155222,1712855449935,-500.0,0.0003041,2]
[322155223,1712855449945,-647.2,0.0003041,2]
[322155224,1712855449956,-559.05,0.0003041,2]
[322155225,1712855449966,-500.0,0.0003041,2]
[322155226,1712855449977,-516.61,0.0003041,2]
[322155227,1712855449988,-700.1,0.0003041,2]
[322155228,1712855450000,-500.0,0.0003041,2]
[322155229,1712855450009,-824.72,0.0003041,2]
[322155230,1712855450019,-658.1,0.0003041,2]
[322155231,1712855450029,-500.0,0.0003041,2]
[322155232,1712855450039,-500.0,0.0003041,2]
[322155233,1712855450048,-1591.51,0.0003041,2]
[322155234,1712855450058,-500.0,0.0003041,2]
[322155235,1712855450068,-500.0,0.0003041,2]
[322155236,1712855450078,-210.05,0.0003041,2]
[322155237,1712855450088,-644.66,0.0003041,2]
[322155238,1712855450102,-500.0,0.0003041,2]
[322155239,1712855450112,-961.92,0.0003041,2]
[322155240,1712855450122,-500.0,0.0003041,2]
[322155241,1712855450132,-300.0,0.0003041,2]
[322155242,1712855450142,-517.05746553,0.0003041,2]
[322155243,1712855450152,-500.0,0.0003041,2]
[322155244,1712855450163,-619.31,0.0003041,2]
[322155245,1712855450173,-5000.0,0.0003041,2]
[322155246,1712855450184,-540.92845011,0.0003041,2]
[322155247,1712855450194,-500.0,0.0003041,2]
[322155248,1712855450203,-668.85,0.0003041,2]
[322155249,1712855450213,-500.0,0.0003041,2]
[322155250,1712855450223,-500.0,0.0003041,2]
[322155251,1712855450233,-767.0,0.0003041,2]
[322155252,1712855450243,-738.74,0.0003041,2]
[322155253,1712855450254,-748.36,0.0003041,2]
[322155254,1712855450264,-500.0,0.0003041,2]
[322155255,1712855450274,-500.0,0.0003041,2]
[322155256,1712855450284,-2135.78,0.0003041,2]
[322155257,1712855450293,-500.0,0.0003041,2]
[322155258,1712855450303,-500.0,0.0003041,2]
[322155259,1712855450312,-546.44429133,0.0003041,2]
[322155260,1712855450322,-500.0,0.0003041,2]
[322155261,1712855450331,-500.0,0.0003041,2]
[322155262,1712855450341,-500.0,0.0003041,2]
[322155263,1712855450351,-500.0,0.0003041,2]
[322155264,1712855450360,-551.14,0.0003041,2]
[322155265,1712855450370,-500.0,0.0003041,2]
[322155266,1712855450379,-500.0,0.0003041,2]
[322155267,1712855450389,-1674.39,0.0003041,2]
[322155268,1712855450399,-1500.91,0.0003041,2]
[322155269,1712855450409,-1058.24,0.0003041,2]
[322155270,1712855450420,-500.0,0.0003041,2]
[322155271,1712855450430,-500.0,0.0003041,2]
[322155272,1712855450439,-6025.82,0.0003041,2]
[322155273,1712855450449,-603.36,0.0003041,2]
[322155274,1712855450459,-631.46,0.0003041,2]
[322155275,1712855450469,-617.43,0.0003041,2]
[322155276,1712855450478,-500.0,0.0003041,2]
[322155277,1712855450488,-500.0,0.0003041,2]
[322155278,1712855450497,-500.0,0.0003041,2]
[322155279,1712855450507,-3776.29,0.0003041,2]
[322155280,1712855450517,-2531.35,0.0003041,2]
[322155281,1712855450527,-500.0,0.0003041,2]
[322155282,1712855450536,-3169.01,0.0003041,2]
[322155283,1712855450546,-2533.39,0.0003041,2]
[322155284,1712855450555,-500.0,0.0003041,2]
[322155285,1712855450565,-677.6,0.0003041,2]
[322155286,1712855450574,-500.0,0.0003041,2]
[322155287,1712855450584,-11389.46,0.0003041,2]
[322155288,1712855450593,-500.0,0.0003041,2]
[322155289,1712855450603,-2027.13,0.0003041,2]
[322155290,1712855450612,-1483.21,0.0003041,2]
[322155291,1712855450622,-9112.82,0.0003041,2]
[322155292,1712855450631,-581.29,0.0003041,2]
[322155293,1712855450641,-500.0,0.0003041,2]
[322155294,1712855450650,-605.77879146,0.0003041,2]
[322155295,1712855450659,-500.0,0.0003041,2]
[322155296,1712855450671,-500.0,0.0003041,2]
[322155297,1712855450681,-500.0,0.0003041,2]
[322155298,1712855450691,-500.0,0.0003041,2]
[322155299,1712855450701,-67527.2,0.0003041,2]
[322155300,1712855450711,-500.0,0.0003041,2]
[322155301,1712855450721,-1271.86,0.0003041,2]
[322155302,1712855450730,-151.54957,0.0003041,7]
[322155303,1712855450740,-6849.66,0.0003041,2]
[322155304,1712855450749,-500.0,0.0003041,2]
[322155305,1712855450759,-500.0,0.0003041,2]
[322155306,1712855450768,-3777.28,0.0003041,2]
[322155307,1712855450779,-500.0,0.0003041,2]
[322155308,1712855450788,-5085.34,0.0003041,2]
[322155309,1712855450798,-500.0,0.0003041,2]
[322155310,1712855450808,-500.0,0.0003041,2]
[322155311,1712855450818,-500.0,0.0003041,2]
[322155312,1712855450827,-1472.88,0.0003041,2]
[322155313,1712855450837,-500.0,0.0003041,2]
[322155314,1712855450847,-5118.33,0.0003041,2]
[322155315,1712855450856,-1667.49,0.0003041,2]
[322155316,1712855450866,-588.16682558,0.0003041,2]
[322155317,1712855450875,-806.55,0.0003041,2]
[322155318,1712855450885,-851.26,0.0003041,2]
[322155319,1712855450895,-500.0,0.0003041,2]
[322155320,1712855450904,-500.0,0.0003041,2]
[322155321,1712855450914,-4340.19,0.0003041,2]
[322155322,1712855450924,-1636.3,0.0003041,2]
[322155323,1712855450933,-2685.8,0.0003041,2]
[322155324,1712855450942,-500.0,0.0003041,2]
[322155325,1712855450952,-500.0,0.0003041,2]
[322155326,1712855450961,-561.89362522,0.0003041,2]
[322155327,1712855450970,-2251.41,0.0003041,2]
[322155328,1712855450980,-500.0,0.0003041,2]
[322155329,1712855450990,-452.32250519,0.0003041,2]
[322155330,1712855450999,-7825.04,0.0003041,2]
[322155331,1712855451009,-3890.74,0.0003041,2]
[322155332,1712855451019,-4744.95,0.0003041,2]
[322155333,1712855451029,-3771.46,0.0003041,2]
[322155334,1712855451038,-500.0,0.0003041,2]
[322155335,1712855451047,-500.0,0.0003041,2]
[322155336,1712855451056,-500.0,0.0003041,2]
[322155337,1712855451066,-16309.44,0.0003041,2]
[322155338,1712855451075,-1208.62,0.0003041,2]
[322155339,1712855451086,-656.92,0.0003041,2]
[322155340,1712855451097,-500.0,0.0003041,2]
[322155341,1712855451108,-6844.23,0.0003041,2]
[322155342,1712855451118,-500.0,0.0003041,2]
[322155343,1712855451127,-2340.25,0.0003041,2]
[322155344,1712855451138,-166.59860647,0.0003041,2]
[322155345,1712855451148,-506.27479757,0.0003041,2]
[322155346,1712855451157,-12880.93,0.0003041,2]
[322155347,1712855451167,-1592.6,0.0003041,2]
[322155348,1712855451179,-500.0,0.0003041,2]
[322155349,1712855451189,-8811.69,0.0003041,2]
[322155350,1712855451198,-500.0,0.0003041,2]
[322155351,1712855451207,-500.0,0.0003041,2]
[322155352,1712855451217,-1823.47,0.0003041,2]
[322155353,1712855451226,-1881.33,0.0003041,2]
[322155354,1712855451236,-549.25,0.0003041,2]
[322155355,1712855451245,-4635.65,0.0003041,2]
[322155356,1712855451254,-500.0,0.0003041,2]
[322155357,1712855451263,-3335.21,0.0003041,2]
[322155358,1712855451273,-3930.45,0.0003041,2]
[322155359,1712855451283,-500.0,0.0003041,2]
[322155360,1712855451292,-2696.84,0.0003041,2]
[322155361,1712855451301,-500.0,0.0003041,2]
[322155362,1712855451312,-18201.79,0.0003041,2]
[322155363,1712855451321,-500.0,0.0003041,2]
[322155364,1712855451330,-500.0,0.0003041,2]
[322155365,1712855451340,-533.14,0.0003041,2]
[322155366,1712855451349,-500.0,0.0003041,2]
[322155367,1712855451358,-4785.47,0.0003041,2]
[322155368,1712855451367,-5396.38,0.0003041,2]
[322155369,1712855451377,-500.0,0.0003041,2]
[322155370,1712855451386,-2477.24,0.0003041,2]
[322155371,1712855451398,-500.0,0.0003041,2]
[322155372,1712855451417,-3871.68,0.0003041,2]
[322155373,1712855451427,-1873.69,0.0003041,2]
[322155374,1712855451436,-4707.31,0.0003041,2]
[322155375,1712855451446,-686.64,0.0003041,2]
[322155376,1712855451455,-1803.77,0.0003041,2]
[322155377,1712855451465,-3380.21,0.0003041,2]
[322155378,1712855451474,-500.0,0.0003041,2]
[322155379,1712855451483,-500.0,0.0003041,2]
[322155380,1712855451492,-3200.15,0.0003041,2]
[322155381,1712855451502,-504.81,0.0003041,2]
[322155382,1712855451511,-4230.61,0.0003041,2]
[322155383,1712855451521,-13769.66,0.0003041,2]
[322155384,1712855451530,-1783.78,0.0003041,2]
[322155385,1712855451539,-3053.08,0.0003041,2]
[322155386,1712855451549,-8776.05,0.0003041,2]
[322155387,1712855451770,-8157.85,0.0003041,2]
[322155388,1712855451780,-500.0,0.0003041,2]
[322155389,1712855451790,-500.0,0.0003041,2]
[322155390,1712855451799,-5288.97,0.0003041,2]
[322155391,1712855451810,-500.0,0.0003041,2]
[322155392,1712855451819,-1226.88,0.0003041,2]
[322155393,1712855451828,-500.0,0.0003041,2]
[322155394,1712855451838,-500.0,0.0003041,2]
[322155395,1712855451847,-585.73,0.0003041,2]
[322155396,1712855451858,-914.49,0.0003041,2]
[322155397,1712855451868,-4522.39,0.0003041,2]
[322155398,1712855451877,-2626.37,0.0003041,2]
[322155399,1712855451886,-5009.64,0.0003041,2]
[322155400,1712855451896,-500.0,0.0003041,2]
[322155401,1712855451906,-2360.81,0.0003041,2]
[322155402,1712855451916,-500.0,0.0003041,2]
[322155403,1712855451926,-500.0,0.0003041,2]
[322155404,1712855451937,-19778.26,0.0003041,2]
[322155405,1712855451946,-500.0,0.0003041,2]
[322155406,1712855451956,-1283.77,0.0003041,2]
[322155407,1712855451967,-500.0,0.0003041,2]
[322155408,1712855451979,-500.0,0.0003041,2]
[322155409,1712855451989,-4321.27,0.0003041,2]
[322155410,1712855451999,-521.66769635,0.0003041,2]
[322155411,1712855452008,-8777.62,0.0003041,2]
[322155412,1712855452018,-726.89,0.0003041,2]
[322155413,1712855452030,-500.0,0.0003041,2]
[322155414,1712855452041,-557.38699061,0.0003041,2]
[322155415,1712855452052,-3834.51,0.0003041,2]
[322155416,1712855452063,-500.0,0.0003041,2]
[322155417,1712855452073,-500.0,0.0003041,2]
[322155418,1712855452084,-1130.13,0.0003041,2]
[322155419,1712855452098,-501.34,0.0003041,2]
[322155420,1712855452108,-583.09066339,0.0003041,2]
[322155421,1712855452118,-4009.72,0.0003041,2]
[322155422,1712855452127,-3630.11,0.0003041,2]
[322155423,1712855452137,-9825.91,0.0003041,2]
[322155424,1712855452147,-500.0,0.0003041,2]
[322155425,1712855452156,-500.0,0.0003041,2]
[322155426,1712855452167,-500.0,0.0003041,2]
[322155427,1712855452179,-2893.32,0.0003041,2]
[322155428,1712855452191,-1013.67,0.0003041,2]
[322155429,1712855452201,-500.0,0.0003041,2]
[322155430,1712855452212,-500.0,0.0003041,2]
[322155431,1712855452222,-3216.86,0.0003041,2]
[322155432,1712855452233,-4879.77,0.0003041,2]
[322155433,1712855452242,-500.0,0.0003041,2]
[322155434,1712855452253,-952.37,0.0003041,2]
[322155435,1712855452264,-1532.67,0.0003041,2]
[322155436,1712855452275,-33317.91,0.0003041,2]
[322155437,1712855452284,-515.46,0.0003041,2]
[322155438,1712855452294,-3775.27,0.0003041,2]
[322155439,1712855452305,-543.29961113,0.0003041,2]
[322155440,1712855452316,-7708.84,0.0003041,2]
[322155441,1712855452327,-500.0,0.0003041,2]
[322155442,1712855452336,-500.0,0.0003041,2]
[322155443,1712855452346,-500.0,0.0003041,2]
[322155444,1712855452356,-4054.88,0.0003041,2]
[322155445,1712855452366,-25328.05,0.0003041,2]
[322155446,1712855452376,-578.54688031,0.0003041,2]
[322155447,1712855452387,-1288.27,0.0003041,2]
[322155448,1712855452397,-1259.13,0.0003041,2]
[322155449,1712855452408,-24119.7,0.0003041,2]
[322155450,1712855452419,-2569.92,0.0003041,2]
[322155451,1712855452428,-1241.26,0.0003041,2]
[322155452,1712855452437,-595.95,0.0003041,2]
[322155453,1712855452446,-13729.95,0.0003041,2]
[322155454,1712855452456,-382.02793336,0.0003041,2]
[322155455,1712855452465,-500.0,0.0003041,2]
[322155456,1712855452475,-2635.36,0.0003041,2]
[322155457,1712855452484,-3868.15,0.0003041,2]
[322155458,1712855452493,-2987.84,0.0003041,2]
[322155459,1712855452503,-7119.18,0.0003041,2]
[322155460,1712855452512,-500.0,0.0003041,2]
[322155461,1712855452521,-5618.15,0.0003041,2]
[322155462,1712855452530,-539.89,0.0003041,2]
[322155463,1712855452539,-4048.97,0.0003041,2]
[322155464,1712855452548,-500.0,0.0003041,2]
[322155465,1712855452557,-7883.79,0.0003041,2]
[322155466,1712855452567,-500.0,0.0003041,2]
[322155467,1712855452576,-2691.37,0.0003041,2]
[322155468,1712855452585,-842.56,0.0003041,2]
[322155469,1712855452594,-4453.1,0.0003041,2]
[322155470,1712855452603,-3387.0,0.0003041,2]
[322155471,1712855452613,-11531.77,0.0003041,2]
[322155472,1712855452622,-500.0,0.0003041,2]
[322155473,1712855452631,-243.970301,0.0003041,7]
[322155474,1712855452640,-243.970301,0.0003041,7]
[322155475,1712855452649,-8348.49,0.0003041,2]
[322155476,1712855452658,-243.970301,0.0003041,7]
[322155477,1712855452669,-243.970301,0.0003041,7]
[322155478,1712855452678,-500.0,0.0003041,2]
[322155479,1712855452687,-500.0,0.0003041,2]
[322155480,1712855452696,-500.0,0.0003041,2]
[322155481,1712855452706,-3810.59,0.0003041,2]
[322155482,1712855452715,-863.89,0.0003041,2]
[322155483,1712855452724,-2308.17,0.0003041,2]
[322155484,1712855452733,-25857.53,0.0003041,2]
[322155485,1712855452742,-4108.22,0.0003041,2]
[322155486,1712855452751,-500.0,0.0003041,2]
[322155487,1712855452761,-500.0,0.0003041,2]
[322155488,1712855452770,-500.0,0.0003041,2]
[322155489,1712855452779,-9363.78,0.0003041,2]
[322155490,1712855452788,-500.0,0.0003041,2]
[322155491,1712855452797,-500.0,0.0003041,2]
[322155492,1712855452806,-9569.96,0.0003041,2]
[322155493,1712855452816,-500.0,0.0003041,2]
[322155494,1712855452825,-692.08,0.0003041,2]
[322155495,1712855452835,-524.57,0.0003041,2]
[322155496,1712855452844,-3943.4,0.0003041,2]
[322155497,1712855452853,-500.0,0.0003041,2]
[322155498,1712855452862,-500.0,0.0003041,2]
[322155499,1712855452871,-6198.95,0.0003041,2]
[322155500,1712855452881,-2858.57,0.0003041,2]
[322155501,1712855452890,-871.09,0.0003041,2]
[322155502,1712855452899,-5306.84,0.0003041,2]
[322155503,1712855452909,-1658.41,0.0003041,2]
[322155504,1712855452919,-500.0,0.0003041,2]
[322155505,1712855452928,-3838.68,0.0003041,2]
[322155506,1712855452938,-500.0,0.0003041,2]
[322155507,1712855452947,-4111.26,0.0003041,2]
[322155508,1712855452956,-500.0,0.0003041,2]
[322155509,1712855452965,-9761.86,0.0003041,2]
[322155510,1712855452974,-67489.57,0.0003041,2]
[322155511,1712855452984,-5845.1,0.0003041,2]
[322155512,1712855452993,-1044.95,0.0003041,2]
[322155513,1712855453002,-500.0,0.0003041,2]
[322155514,1712855453011,-500.0,0.0003041,2]
[322155515,1712855453020,-2312.49,0.0003041,2]
[322155516,1712855453029,-500.0,0.0003041,2]
[322155517,1712855453039,-1003.13,0.0003041,2]
[322155518,1712855453047,-500.0,0.0003041,2]
[322155519,1712855453057,-500.0,0.0003041,2]
[322155520,1712855453067,-2278.23,0.0003041,2]
[322155521,1712855453076,-500.0,0.0003041,2]
[322155522,1712855453086,-718.12,0.0003041,2]
[322155523,1712855453095,-9573.97,0.0003041,2]
[322155524,1712855453108,-9465.76,0.0003041,2]
[322155525,1712855453117,-8900.75,0.0003041,2]
[322155526,1712855453126,-500.0,0.0003041,2]
[322155527,1712855453135,-500.0,0.0003041,2]
[322155528,1712855453146,-41447.26,0.0003041,2]
[322155529,1712855453156,-609.04923461,0.0003041,2]
[322155530,1712855453167,-500.0,0.0003041,2]
[322155531,1712855453177,-1982.7,0.0003041,2]
[322155532,1712855453186,-536.71055603,0.0003041,2]
[322155533,1712855453197,-510.59,0.0003041,2]
[322155534,1712855453207,-500.0,0.0003041,2]
[322155535,1712855453216,-2991.93,0.0003041,2]
[322155536,1712855453226,-500.0,0.0003041,2]
[322155537,1712855453235,-3592.63,0.0003041,2]
[322155538,1712855453244,-500.0,0.0003041,2]
[322155539,1712855453254,-500.0,0.0003041,2]
[322155540,1712855453263,-2454.19,0.0003041,2]
[322155541,1712855453274,-1963.6,0.0003041,2]
[322155542,1712855453284,-2275.14,0.0003041,2]
[322155543,1712855453293,-7039.72,0.0003041,2]
[322155544,1712855453303,-500.0,0.0003041,2]
[322155545,1712855453312,-651.1,0.0003041,2]
[322155546,1712855453321,-500.0,0.0003041,2]
[322155547,1712855453330,-438.71961049,0.0003041,2]
[322155548,1712855453339,-500.0,0.0003041,2]
[322155549,1712855453348,-500.0,0.0003041,2]
[322155550,1712855453358,-813.94,0.0003041,2]
[322155551,1712855453367,-1843.26,0.0003041,2]
[322155552,1712855453376,-500.0,0.0003041,2]
[322155553,1712855453386,-5257.14,0.0003041,2]
[322155554,1712855453394,-2610.42,0.0003041,2]
[322155555,1712855453404,-3961.14,0.0003041,2]
[322155556,1712855453416,-509.69573834,0.0003041,2]
[322155557,1712855453425,-168.52025508,0.00030484,2]
[322155558,1712855453434,-1629.57643574,0.00030535,5]
[322155559,1712855453443,-640861.85273068,0.0003057,7]
[322155560,1712855454278,-743.0334,0.0003057,7]
[322155561,1712855454290,-898.128,0.0003057,7]
[322155562,1712855454304,-4540.0,0.0003057,7]
[322155563,1712855454361,-3165.97262386,0.0003057,7]
[322155564,1712855455077,-355.9789166,0.00030135,4]
[322155565,1712855455089,-567.95813038,0.00030135,4]
[322155566,1712855455104,-500.0,0.00030136,2]
[322155567,1712855455114,-500.0,0.00030136,2]
[322155568,1712855455124,-316.01,0.0003041,2]
[322155569,1712855455134,-500.0,0.0003041,2]
[322155570,1712855455150,-3809.54522117,0.0003057,7]
[322155571,1712855455159,-4550.67245003,0.00030571,2]
[322155572,1712855455173,-601.93717688,0.00030571,2]
[322155573,1712855455268,-1068.21830524,0.00030571,2]
[322155574,1712855455284,-1427.23544167,0.00030135,4]
[322155575,1712855455293,-154.0199483,0.00030571,2]
[322155576,1712855455461,-640.0226303,0.00030571,2]
[322155577,1712855455471,-6380.6719832,0.00030571,2]
[322155578,1712855455482,-6546.012,0.00030571,2]
[322155579,1712855455493,-360.44824083,0.00030571,2]
[322155580,1712855455505,-502.13752266,0.00030571,2]
[322155584,1712855854323,150.52,0.00029064,120]
[322155587,1712856267379,191.99,0.00016712,2]
[322155588,1712856330051,155.0,0.00016712,2]
[322155589,1712856348003,155.0,0.00016712,2]
[322155590,1712856357485,2536.83248559,0.00012534,2]
[322155591,1712856366472,407.81986227,0.00016712,2]
[322155592,1712856370009,155.0,0.00016712,2]